Cogmind - Beta 13 @@@ ROGUE MODE // 2024.04.04 @ 17:48:25 Player: emory Result: Destroyed by Y-45 Defender with Heavy Assault Rifle Performance ------------- Evolutions (2) 1000 Regions Visited (3) 600 Robots Destroyed (10) 50 Value Destroyed (199) 199 Prototype IDs (0) 0 Alien Tech Used (0) 0 Bonus (0) 0 TOTAL SCORE: 1849 Bonus ------- None Cogmind --------- Core Integrity 0/550 Matter 129/300 Energy 100/100 System Corruption 1% Temperature Cool (9) Movement Core (350) Ox6 Location -8/Materials Parts ------- > --- POWER (2) -------- (None) > --- PROPULSION (4) --- (None) > --- UTILITY (3) ------ Large Storage Unit > --- WEAPON (2) ------- (None) > --- INVENTORY (15) --- Ion Engine Light Ion Engine Faulty Heavy Ion Engine Beam Rifle Light Assault Rifle Grenade Launcher Peak State ------------ > --- POWER ------------ Light Ion Engine > --- PROPULSION ------- Light Treads Light Treads Aluminum Leg Aluminum Leg > --- UTILITY ---------- Large Storage Unit Reaction Control System > --- WEAPON ----------- Assault Rifle Grenade Launcher > --- INVENTORY -------- Ion Engine Light Ion Engine Beam Rifle Light Assault Rifle [Rating: 11] Favorites ----------- Power Light Ion Engine Engine Light Ion Engine Propulsion Light Treads Treads Light Treads Leg Aluminum Leg Utility Large Storage Unit Device Reaction Control System Storage Large Storage Unit Weapon Assault Rifle Ballistic Gun Assault Rifle Launcher Grenade Launcher Build | -11 -10 -9 -8 ------- Run | Yrd Mat Mat Mat Slots Evolved 4 | . . 2 2 Power 1 | . . . 1 Propulsion 2 | . . 2 . Utility 1 | . . . 1 Weapon . | . . . . Parts Attached 12 | 4 5 2 1 Power 1 | 1 . . . Engine 1 | 1 . . . Core . | . . . . Reactor . | . . . . Propulsion 5 | 3 . 2 . Treads 2 | 2 . . . Leg 3 | 1 . 2 . Wheel . | . . . . Hover . | . . . . Flight . | . . . . Utility 4 | . 3 . 1 Device 1 | . . . 1 Storage 3 | . 3 . . Processor . | . . . . Hackware . | . . . . Protection . | . . . . Artifact . | . . . . Weapon 2 | . 2 . . Energy Gun . | . . . . Energy Cannon . | . . . . Ballistic Gun 1 | . 1 . . Ballistic Cannon . | . . . . Launcher 1 | . 1 . . Special Weapon . | . . . . Impact Weapon . | . . . . Slashing Weapon . | . . . . Piercing Weapon . | . . . . Special Melee Weapon . | . . . . Unidentified Prototypes . | . . . . Parts Lost 7 | . . . 7 Power 1 | . . . 1 Propulsion 4 | . . . 4 Utility 1 | . . . 1 Weapon 1 | . . . 1 Highest Loss Streak 7 | . . . 7 To Critical Strikes 1 | . . . 1 Average Slot Usage (%) 75 | . 74 88 56 Engine 10 | . 14 11 6 Treads 20 | . 28 22 12 Leg 14 | . . 22 13 Device 1 | . . . 3 Storage 10 | . 12 11 9 Ballistic Gun 9 | . 10 11 5 Launcher 8 | . 10 11 5 Naked Turns . | . . . . Heaviest Build 29 | 3 28 28 29 Greatest Support 40 | 40 40 20 20 Greatest Overweight (x) 6 | . . 1 6 Average Overweight (x) . | . . 1 1 Largest Inventory Capacity 15 | 5 15 15 15 Average Capacity 13 | 5 11 15 15 Most Carried 6 | 5 5 4 6 Average Carried 4 | 4 4 3 5 Final Capacity 15 | 5 15 15 15 Final Carried 6 | 5 5 4 6 Class Distribution -------------------- 100% | Mutant Dominant Class ---------------- Mutant | -10/Materials Mutant | -9/Materials Mutant | -8/Materials Resources | -11 -10 -9 -8 ----------- Run | Yrd Mat Mat Mat Matter Collected 216 | 161 35 20 . Remotely . | . . . . Salvage Created 114 | . 94 20 . Parts 17 | . 15 1 1 Haulers Intercepted . | . . . . Recyclers Shooed . | . . . . Parts Field Recycled . | . . . . Retrieved Matter . | . . . . Parts Self-Destructed . | . . . . Prevented . | . . . . Kills | -11 -10 -9 -8 ------- Run | Yrd Mat Mat Mat Combat Hostiles Destroyed 7 | . 5 1 1 Melee 1 | . . . 1 Guns 1 | . 1 . . AOE 5 | . 4 1 . Classes Destroyed 5 | . 4 1 . Worker 1 | . 1 . . Watcher 2 | . 1 1 . Swarmer 4 | . 3 . 1 Grunt 2 | . 2 . . Sentry 1 | . . 1 . Best Kill Streak 6 | . 6 1 1 Combat Bots Only 5 | . 5 1 1 Max Kills in Single Turn 4 | . 4 1 1 Gunslinging . | . . . . Exploded 3 | . 3 1 . Melee 1 | . . . 1 Uniques/NPCs Destroyed . | . . . . Combat | -11 -10 -9 -8 -------- Run | Yrd Mat Mat Mat Hostile Shots Fired 191 | . 19 12 160 Missed 45 | . 3 2 40 Damage Taken 1493 | . 175 151 1167 Core 565 | . 9 . 556 Absorbed by Shields . | . . . . Core Remaining (%) 98 | 100 96 100 . Volleys Fired 15 | . 8 7 . Largest 2 | . 2 2 . Hottest 50 | . 50 50 . Shots Fired 30 | . 16 14 . Gun 15 | . 8 7 . Cannon . | . . . . Launcher 15 | . 8 7 . Special . | . . . . Kinetic 15 | . 8 7 . Thermal . | . . . . Explosive 15 | . 8 7 . Electromagnetic . | . . . . Robot Hit Streak 9 | . 3 9 . Robot Miss Streak 1 | . 1 1 . Penetration Max . | . . . . Secondary Targets . | . . . . Shots Hit Robots 20 | . 9 11 . Core Hits 23 | . 9 6 8 Critical Kills . | . . . . Critical Parts Destroyed . | . . . . Critical Strikes . | . . . . Melee Attacks . | . . . . Impact . | . . . . Slashing . | . . . . Piercing . | . . . . Sneak Attacks . | . . . . Combat Hostiles . | . . . . Follow-up Attacks . | . . . . Damage Inflicted 639 | . 373 218 48 Guns 122 | . 70 52 . Cannons . | . . . . Explosions 459 | . 303 156 . Melee . | . . . . Ramming 58 | . . 10 48 Kinetic 122 | . 70 52 . Thermal . | . . . . Explosive 459 | . 303 156 . Electromagnetic . | . . . . Impact . | . . . . Slashing . | . . . . Piercing . | . . . . Highest Corruption 1 | . . . 1 Average Corruption 1 | . . . 1 Corruption Purged . | . . . . Corruption Blocked . | . . . . Effects 2 | . . . 2 Message Errors 1 | . . . 1 Data Loss (major) 1 | . . . 1 Overload Shots . | . . . . Overflow Damage 20 | . 20 . . Projectiles . | . . . . Explosions 20 | . 20 . . Melee . | . . . . Knockbacks . | . . . . Impact . | . . . . Kinetic . | . . . . Secondary . | . . . . Self-Inflicted Damage . | . . . . Shots . | . . . . Rammed 6 | . . . 6 Targets Rammed 28 | . . 1 27 Kicked 22 | . . 1 21 Crushed . | . . . . Highest Temperature 7 | . 7 2 . Average Temperature 3 | . 3 2 . Received Heat Transfer 288 | . 54 36 198 Siege Activations . | . . . . Robots Corrupted . | . . . . Combat Hostiles . | . . . . Parts Fried . | . . . . Impact Corruptions . | . . . . Robots Melted . | . . . . Combat Hostiles . | . . . . Parts Melted . | . . . . Heat Transferred . | . . . . Parts Sabotaged . | . . . . Parts Stolen . | . . . . Parts Stripped . | . . . . Power Chain Reactions . | . . . . Alert | -11 -10 -9 -8 ------- Run | Yrd Mat Mat Mat Peak Influence 159 | . 158 159 66 Initial 66 | . . 66 66 Average 86 | . 98 126 50 Maximum Alert Level . | . . . . Low Security (%) 100 | 100 100 100 100 Level 1 . | . . . . Level 2 . | . . . . Level 3 . | . . . . Level 4 . | . . . . Level 5 . | . . . . High Security . | . . . . Max Security . | . . . . Squads Dispatched 1 | . . 1 . Investigation . | . . . . Extermination . | . . . . Reinforcement 1 | . . 1 . Assault . | . . . . Garrison . | . . . . Intercept . | . . . . Searches Triggered . | . . . . Construction Impeded . | . . . . Haulers Reinforced . | . . . . Active Scanning Responses . | . . . . Cargo Convoy Interrupts . | . . . . Stealth | -11 -10 -9 -8 --------- Run | Yrd Mat Mat Mat Distress Signals 1 | . 1 . . Communications Jammed . | . . . . Distress Signals . | . . . . Times Spotted 17 | . 7 5 5 Peak Tracking Total 6 | . 6 1 5 Tactical Retreats . | . . . . Traps | -11 -10 -9 -8 ------- Run | Yrd Mat Mat Mat Traps Triggered . | . . . . Indirectly . | . . . . Trap Hack Attempts . | . . . . Triggered . | . . . . Disarmed . | . . . . Reprogrammed . | . . . . Reused . | . . . . Traps Extracted . | . . . . Installed . | . . . . Triggered . | . . . . Machines | -11 -10 -9 -8 ---------- Run | Yrd Mat Mat Mat Machines Disabled . | . . . . Max in Single Turn . | . . . . Machines Repaired . | . . . . Machines Dismantled . | . . . . Machines Sabotaged . | . . . . Overloaded Fab Kills . | . . . . Hacking | -11 -10 -9 -8 --------- Run | Yrd Mat Mat Mat Machines Accessed . | . . . . Terminals . | . . . . Fabricators . | . . . . Repair Stations . | . . . . Recycling Units . | . . . . Scanalyzers . | . . . . Garrison Access . | . . . . Total Hacks . | . . . . Successful . | . . . . Failed . | . . . . Catastrophic . | . . . . Database Lockouts . | . . . . Manual . | . . . . Terminals . | . . . . Fabricators . | . . . . Repair Stations . | . . . . Recycling Units . | . . . . Scanalyzers . | . . . . Garrison Access . | . . . . Terminal Hacks . | . . . . Fabricator Hacks . | . . . . Repair Station Hacks . | . . . . Recycling Unit Hacks . | . . . . Scanalyzer . | . . . . Garrison Access Hacks . | . . . . Unauthorized Hacks . | . . . . Terminals . | . . . . Fabricators . | . . . . Repair Stations . | . . . . Recycling Units . | . . . . Scanalyzers . | . . . . Garrison Access . | . . . . Data Cores Recovered . | . . . . Used . | . . . . Hacking Detections . | . . . . Full Trace Events . | . . . . Feedback Events . | . . . . Feedback Blocked . | . . . . Robot Schematics Acquired . | . . . . Robots Built . | . . . . Authchips . | . . . . Time . | . . . . Total Robot Build Rating . | . . . . Part Schematics Acquired . | . . . . Parts Built . | . . . . Authchips . | . . . . Time . | . . . . Total Part Build Rating . | . . . . Parts Repaired . | . . . . Time . | . . . . Parts Recycled . | . . . . Recycled Matter . | . . . . Retrieved Matter . | . . . . Retrieved Components . | . . . . Parts Scanalyzed . | . . . . Part Schematics Acquired . | . . . . Parts Damaged . | . . . . Bothacking | -11 -10 -9 -8 ------------ Run | Yrd Mat Mat Mat Used RIF Installer . | . . . . Robots Hacked . | . . . . Non-combat . | . . . . Combat . | . . . . Robot Hacks Applied . | . . . . Relay Couplers Released . | . . . . Fabnet Peak Effective % . | . . . . Robots Rewired . | . . . . Allies Hacked . | . . . . Hacks Repelled . | . . . . Allies | -11 -10 -9 -8 -------- Run | Yrd Mat Mat Mat Total Allies . | . . . . Largest Group . | . . . . Highest-Rated Group . | . . . . Highest-Rated Ally . | . . . . Total Orders . | . . . . Ally Attacks . | . . . . Total Damage . | . . . . Kills . | . . . . Allies Corrupted . | . . . . Allies Melted . | . . . . Intel | -11 -10 -9 -8 ------- Run | Yrd Mat Mat Mat Robot Analysis Total . | . . . . Derelict Logs Recovered . | . . . . Drone Launches . | . . . . Drone Recoveries . | . . . . Exploration | -11 -10 -9 -8 ------------- Run | Yrd Mat Mat Mat Turns Passed 737 | 78 136 311 212 Spaces Moved 338 | 55 64 141 78 Core 27 | 19 . . 8 Treads 100 | 36 64 . . Legs 211 | . . 141 70 Wheels . | . . . . Hover . | . . . . Flight . | . . . . Fastest Speed 50 | 50 160 190 120 Average Speed 176 | 122 160 190 201 Slowest Speed 350 | 160 160 190 350 Overloaded Moves . | . . . . Propulsion Burnouts . | . . . . Robots Hopped . | . . . . Cave-ins Triggered . | . . . . Exploration Rate (%) 12 | 4 22 16 8 Regions Visited 3 Branch Regions . Pre-discovered Areas . | . . . . Known Exits Taken . | . . . . Unknown Exits Taken 3 | 1 1 1 . Scrap Searched . | . . . . Spaces Dug . | . . . . Terrain Destroyed 67 | . 41 26 . Melee . | . . . . Projectile . | . . . . AOE 67 | . 41 26 . Terrain Rammed . | . . . . Walls Destroyed . | . . . . Machines Disabled . | . . . . Actions | -11 -10 -9 -8 --------- Run | Yrd Mat Mat Mat Total 429 | 67 83 170 109 Wait 19 | . . 19 . Move 335 | 54 63 140 78 Hop . | . . . . Pick Up 16 | 8 5 1 2 Fast Attach . | . . . . Attach 12 | 4 5 2 1 Detach 2 | 1 . . 1 Swap . | . . . . Drop 2 | . 2 . . Fire 15 | . 8 7 . Melee . | . . . . Ram 6 | . . . 6 Kick 22 | . . 1 21 Crush . | . . . . Escape Stasis . | . . . . Rewire . | . . . . Trap . | . . . . Miscellaneous . | . . . . Route ------- -11/Scrapyard -10/Materials -9/Materials -8/Materials History --------- Turn | Location | Event 8 | -11/Scrapyard | Discovered new exit (range 16) 79 | -11/Scrapyard | Entered Materials 187 | -10/Materials | Discovered new exit (range 16) 215 | -10/Materials | Entered another Materials area 215 | -9/Materials | Evolved 2 slots: Propulsion x2 313 | -9/Materials | Build established: Mutant 441 | -9/Materials | Discovered new exit (range 11) 526 | -9/Materials | Entered another Materials area 526 | -8/Materials | Evolved 2 slots: Power x1, Utility x1 713 | -8/Materials | Core integrity fell below 50% 720 | -8/Materials | Lost 7 parts (1p4n1u1w) 733 | -8/Materials | Core integrity fell below 20% 738 | -8/Materials | Destroyed by Y-45 Defender with Heavy Assault Rifle Last Messages --------------- Lgt. Treads destroyed. Kicked S-10 Pest. Kicked S-10 Pest out of the way. Kicked S-10 Pest. Kicked S-10 Pest out of the way. Kicked S-10 Pest. Lgt. Treads destroyed. Kicked S-10 Pest. Critical hit (Destroy). Aluminum Leg destroyed. Kicked S-10 Pest. Aluminum Leg destroyed. Slammed into S-10 Pest. Destabilizing: System corrupted (+1). KCVNYWNWUAUWEOXBC0U<#V75SSI:Z2I Slammed into S-10 Pest. S-10 Pest destroyed. Critical hit (Burn: +37). Slammed into Y-45 Defender. System corrupted: Substantial component data lost. Map ----- +----------------------------------------------------+ | ?????????????????????????????????????????????????? | | ?????????????????????????????????????????????????? | | ?????????????????????????????????????????????????? | | ?????????????????????????????????????????????????? | | ?????????????????????????????????????????????????? | | ?????????????????????????????????????????????????? | | ?????????????????????????????????????????????????? | | ?????????????????????????????????????????????????? | | ?????????????????????????????????????????????????? | | ?????????????????????????????????????????????????? | | ?????????????????????##########??????????????????? | | ?????????????????????# ###########????????? | | ?????????????????????# """ # #????????? | | ?????????????????????# """ # #????????? | | ?????????????????????# """ # """ """ #????????? | | ????????????????? ??#[ # """ """ #????????? | | ????????????????] # # """ """ #????????? | | ?????????????????? + "Y" # """ #????????? | | ?????????????????????# """ # [ #????????? | | ?????????????????????# # #????????? | | ????????????#######+######+######+################ | | ??????????? ^ | | ??????????? | | ??????????? [ | | ????????????##############+####################### | | ????????????????????# = @ #???????????????? | | ????????????????????# sY ! #???????????????? | | ????????????????????# s ] #???????????????? | | ????????????????????# #???????????????? | | ????????????????????# =[ #???????????????? | | ????????????????????##############???????????????? | | | | | | | | | | | | | | | | | | | | | | | | | | | | | | | | | | | | | | | +----------------------------------------------------+ Best States ------------- Heat Dissipation 31 Energy Generation 10 Energy Capacity 125 Matter Stores 221 Matter Capacity 300 Sight Range 16 Terrain Scan Density 10 Evasion (%) 50 Recoil Reduction 2 Item Schematics ----------------- None Robot Schematics ------------------ None Fabricated ------------ Nothing Alien Tech Used ----------------- None Achievements -------------- Oops Challenges ------------ None Game ------ Seed CannonActuatorRegenerator Manual? 0 Play Time 00:16:33 Cumulative 2.3 hours Start 2024.04.02 @ 23:36:02 End 2024.04.04 @ 17:48:25 Sessions 3 Manual Loads 0 Difficulty Rogue Special Mode None Game No. 6 Rogue 6 Adventurer 0 Explorer 0 Win Type - Total 0 Types 0/0/0/0/0/0/0/0/0 Lore% 1 Gallery% 3 Achievement% 3 Wizard Run 0 Options --------- Layout 0 ASCII 1 Keyboard 0 Movement Mouse Keybinds 0 Fullscreen 1 Font 12/Smallcaps Map View 76x50 Zoom Use 0% Tactical HUD 0 Map Filters NONE Filters NONE Steam SD RUN: 8596c51f-ccb8-47c7-bb72-df5c672db60f